fUSD/lending_fUSD_20250512
["ID","MTS","AMOUNT","RATE_DAILY","PERIOD"]
[360784608,1747019559594,358.23,0.00012,2]
[360784609,1747019661453,-183.65854702,0.00012898,2]
[360784611,1747019676554,-102.04145298,0.00012898,2]
[360784612,1747019676576,-57.12151405,0.00012911,2]
[360784613,1747019691944,-102.03848595,0.00012911,2]
[360784614,1747019707470,-150.0,0.00012828,2]
[360784615,1747019755526,-271.83712372,0.00012824,2]
[360784616,1747019766786,-224.27106723,0.00012824,2]
[360784617,1747019782765,-224.27106723,0.00012824,2]
[360784618,1747019796579,-279.62074182,0.00012824,2]
[360784619,1747019864803,350.0,1.43e-06,2]
[360784638,1747020089785,-420.80925818,0.00012763,2]
[360784639,1747020096628,-164.68081543,0.00012763,2]
[360784640,1747020111534,-288.71918457,0.00012756,2]
[360784641,1747020126455,-230.36590699,0.00012756,2]
[360784642,1747020141692,-186.03411536,0.00012756,2]
[360784643,1747020157578,-164.71967137,0.00012755,2]
[360784644,1747020171530,-335.28032863,0.00012755,2]
[360784645,1747020171560,-261.55610547,0.00012755,2]
[360784647,1747020186474,-226.58947392,0.00012755,2]
[360784648,1747020201791,-11.85442061,0.00012755,2]
[360784649,1747020201817,-275.95701023,0.00012755,2]
[360784650,1747020208312,-224.04298977,0.00012755,2]
[360784651,1747020208340,-590.23398328,0.00012755,2]
[360784652,1747020208363,-19.90079308,0.00012756,2]
[360784653,1747020208386,-250.0,0.00012756,2]
[360784654,1747020208409,-21161.7,0.00012756,2]
[360784655,1747020208432,-200.0,0.00012759,2]
[360784656,1747020208455,-333.02992639,0.00012763,2]
[360784657,1747020280290,1001.59,0.00010847,2]
[360784658,1747020285673,161.0,0.00028,120]
[360784659,1747020355698,17186.78547339,6.94e-05,2]
[360784661,1747020367702,2408.84409673,8e-05,2]
[360784663,1747020374032,-183.5383065,0.00012772,2]
[360784664,1747020381524,-247.64428827,0.00012772,2]
[360784667,1747020398126,-169.75961356,0.00012772,2]
[360784669,1747020411526,-232.24822036,0.00012771,2]
[360784670,1747020411551,-14.99095186,0.00012772,2]
[360784671,1747020426448,-244.00171574,0.00012759,2]
[360784672,1747020427505,-244.00171574,0.00012759,2]
[360784673,1747020442119,-269.55041985,0.00012759,2]
[360784675,1747020457009,-152.0,0.00012748,2]
[360784676,1747020457030,-43.6,0.00012759,2]
[360784677,1747020472129,-188.44163347,0.00012695,2]
[360784678,1747020476950,4780.25542068,0.0001,2]
[360784679,1747020486500,-217.99600651,0.000123,2]
[360784680,1747020487640,-217.99600651,0.000123,2]
[360784682,1747020502200,-316.43574089,0.000123,2]
[360784683,1747020516524,-344.19295401,0.00012299,2]
[360784685,1747020531470,-74.28042686,0.00012299,2]
[360784686,1747020531498,-228.48437659,0.00012299,2]
[360784687,1747020546880,-174.98116013,0.00012299,2]
[360784688,1747020550788,205.789874,0.00012237,2]
[360784690,1747020561780,-96.53446328,0.00012299,2]
[360784691,1747020561805,-55.77410593,0.00012299,2]
[360784692,1747020578126,-194.30561396,0.00012299,2]
[360784693,1747020591513,-94.11323412,0.00012299,2]
[360784694,1747020591540,-149.92973242,0.00012299,2]
[360784700,1747020606524,-152.83507103,0.00012299,2]
[360784701,1747020606554,-174.98116013,0.00012299,2]
[360784702,1747020606586,-68.84540247,0.00012299,2]
[360784703,1747020621614,-167.50883804,0.00012288,2]
[360784704,1747020621651,-83.46316674,0.00012299,2]
[360784705,1747020621673,-104.84362773,0.00012299,2]
[360784711,1747020632161,-300.0,0.00012298,2]
[360784714,1747020632171,-152.13278589,0.00012299,2]
[360784716,1747020632181,-300.0,0.00012299,2]
[360784717,1747020632190,-150.0,0.00012299,2]
[360784718,1747020632199,-1200.0,0.00012299,2]
[360784719,1747020632209,-244.04296654,0.00012299,2]
[360784720,1747020632218,-2247.57224609,0.000123,2]
[360784721,1747020632227,-3000.0,0.000123,2]
[360784722,1747020632236,-3000.0,0.000123,2]
[360784723,1747020632246,-3000.0,0.000123,2]
[360784724,1747020632256,-3000.0,0.000123,2]
[360784725,1747020632266,-1718.5,0.000123,2]
[360784726,1747020632276,-2030.08,0.00012702,2]
[360784727,1747020632288,-216.54,0.00012706,2]
[360784728,1747020632297,-1725.27614867,0.00012759,2]
[360784729,1747020632307,-159.38,0.00012766,2]
[360784730,1747020632318,-6409.48683981,0.00012772,2]
[360784731,1747020632329,-1646.15532098,0.0001305,2]
[360784732,1747020632339,-1001.59,0.00013111,2]
[360784733,1747020632349,-3631.56138099,0.00013368,2]
[360784734,1747020632360,-255.0,0.00013394,2]
[360784735,1747020632371,-420.0,0.00013496,2]
[360784736,1747020632380,-420.0,0.00013497,2]
[360784737,1747020632389,-465.38010659,0.00013505,2]
[360784738,1747020632399,-250.0,0.00013529,2]
[360784739,1747020632409,-1680.0,0.00013529,2]
[360784740,1747020632419,-432.4745871,0.00013626,2]
[360784741,1747020632428,-207.4,0.00013664,2]
[360784742,1747020632438,-181.13032124,0.0001367,2]
[360784743,1747020632448,-156.2275566,0.00013671,2]
[360784744,1747020632457,-342.16,0.00013672,2]
[360784745,1747020632467,-9999.99,0.00013672,2]
[360784746,1747020632476,-150.99,0.00013672,2]
[360784747,1747020632486,-307.4823,0.00013672,2]
[360784748,1747020632496,-473.5401,0.00013672,2]
[360784749,1747020632505,-5993.65021805,0.00013673,2]
[360784750,1747020632536,-9326.09903541,0.00013673,2]
[360784752,1747020632564,-494.7767235,0.00013673,2]
[360784764,1747020632697,-18531.69446556,0.00013673,2]
[360784774,1747020632904,-48415.30350094,0.00013673,2]
[360784777,1747020637003,-185.08,0.00012649,2]
[360784778,1747020638180,-384.37033467,0.00013673,2]
[360784779,1747020638341,-2886.11746084,0.00013673,2]
[360784780,1747020638353,-27197.23016103,0.00013673,2]
[360784781,1747020638365,-436.87983156,0.00013692,2]
[360784782,1747020638376,-400.0,0.00013698,2]
[360784783,1747020638386,-370.6,0.00013698,2]
[360784784,1747020638395,-400.0,0.00013698,2]
[360784785,1747020638405,-400.0,0.00013698,2]
[360784786,1747020638414,-400.0,0.00013698,2]
[360784787,1747020638424,-400.0,0.00013698,2]
[360784788,1747020638433,-500.0,0.00013698,2]
[360784789,1747020638443,-400.0,0.00013698,2]
[360784790,1747020638453,-400.0,0.00013698,2]
[360784791,1747020638462,-400.0,0.00013698,2]
[360784792,1747020638472,-400.0,0.00013698,2]
[360784793,1747020638482,-400.0,0.00013698,2]
[360784794,1747020638492,-274.23467692,0.00013698,2]
[360784795,1747020638502,-400.0,0.00013698,2]
[360784796,1747020638513,-400.0,0.00013698,2]
[360784797,1747020638523,-400.0,0.00013698,2]
[360784798,1747020638532,-400.0,0.00013698,2]
[360784799,1747020638543,-400.0,0.00013698,2]
[360784800,1747020638552,-422.17,0.00013699,2]
[360784802,1747020638561,-156.22755657,0.00013701,2]
[360784804,1747020638571,-181.13032122,0.0001371,2]
[360784806,1747020638582,-156.22755657,0.00013731,2]
[360784808,1747020638592,-436.87983154,0.00013742,2]
[360784810,1747020638602,-181.13032122,0.00013749,2]
[360784812,1747020638611,-904.0,0.0001376,2]
[360784814,1747020638621,-904.0,0.00013761,2]
[360784816,1747020638630,-156.22755657,0.00013761,2]
[360784818,1747020638639,-151.0,0.00013763,2]
[360784820,1747020638649,-155.0,0.00013763,2]
[360784822,1747020638659,-668.65185757,0.00013763,2]
[360784824,1747020638668,-152.12556038,0.00013763,2]
[360784826,1747020638677,-1000.0,0.00013763,2]
[360784828,1747020638687,-227.0,0.00013763,2]
[360784830,1747020638696,-545.28,0.00013769,2]
[360784832,1747020638706,-400.0,0.00013769,2]
[360784834,1747020638716,-400.0,0.00013769,2]
[360784836,1747020638726,-400.0,0.00013769,2]
[360784838,1747020638735,-400.0,0.00013769,2]
[360784840,1747020638745,-400.0,0.00013769,2]
[360784842,1747020638754,-377.55363618,0.00013769,2]
[360784844,1747020638764,-400.0,0.00013769,2]
[360784846,1747020638773,-400.0,0.00013769,2]
[360784849,1747020638789,-400.0,0.00013769,2]
[360784851,1747020638804,-400.0,0.00013769,2]
[360784853,1747020638813,-400.0,0.00013769,2]
[360784855,1747020638823,-342.99412529,0.00013769,2]
[360784857,1747020638833,-400.0,0.00013769,2]
[360784859,1747020638843,-493.11,0.00013769,2]
[360784861,1747020638852,-400.0,0.00013769,2]
[360784863,1747020638862,-400.0,0.00013769,2]
[360784865,1747020638871,-400.0,0.00013769,2]
[360784867,1747020638881,-400.0,0.00013769,2]
[360784868,1747020638891,-400.0,0.00013769,2]
[360784870,1747020638900,-400.0,0.00013769,2]
[360784872,1747020638909,-400.0,0.00013769,2]
[360784875,1747020638919,-66825.119293,0.0001377,2]
[360784880,1747020638963,-6891.37825609,0.0001377,2]
[360784893,1747020640933,-400.0,0.00013769,2]
[360784894,1747020640942,-364.947,0.00013769,2]
[360784895,1747020640961,-35.053,0.00013769,2]
[360784896,1747020640971,-1140.7703655,0.0001377,2]
[360784897,1747020640984,-999.19775047,0.0001377,2]
[360784898,1747020641031,-2421.15000765,0.0001377,2]
[360784899,1747020641056,-857.87364625,0.00013769,2]
[360784900,1747020641068,-53.89635375,0.00013769,2]
[360784901,1747020641078,-913.17524031,0.0001377,2]
[360784906,1747020643238,-230.10117024,0.00013769,2]
[360784907,1747020643248,-610.98961789,0.0001377,2]
[360784908,1747020643260,-735.915,0.0001377,2]
[360784909,1747020643318,-6320.8303832,0.0001377,2]
[360784910,1747020643331,-783.32441227,0.0001377,2]
[360784911,1747020643365,-1014.22813163,0.0001377,2]
[360784912,1747020643388,-8267.26780342,0.0001377,2]
[360784913,1747020643399,-5376.445856,0.0001377,2]
[360784914,1747020643433,-1121.145,0.0001377,2]
[360784915,1747020643445,-556.3898016,0.0001377,2]
[360784916,1747020643542,-7178.74776248,0.0001377,2]
[360784917,1747020643553,-1165.30404382,0.0001377,2]
[360784918,1747020643565,-435.05137152,0.0001377,2]
[360784919,1747020643599,-7502.35497776,0.0001377,2]
[360784920,1747020643610,-8846.81198358,0.0001377,2]
[360784921,1747020643622,-29758.70995466,0.0001377,2]
[360784922,1747020643632,-501.98493693,0.0001377,2]
[360784923,1747020643641,-471.99279793,0.0001377,2]
[360784924,1747020643651,-250.60207845,0.0001377,2]
[360784925,1747020643660,-378.63906149,0.0001377,2]
[360784926,1747020643672,-131.66011682,0.0001377,2]
[360784927,1747020643682,-168.76867159,0.0001377,2]
[360784928,1747020643694,-231.23132841,0.0001377,2]
[360784929,1747020643704,-200.52268217,0.0001377,2]
[360784930,1747020643713,-400.0,0.0001377,2]
[360784931,1747020643723,-22.26223881,0.0001377,2]
[360784932,1747020643735,-377.73776119,0.0001377,2]
[360784933,1747020643744,-400.0,0.0001377,2]
[360784934,1747020643753,-475.04204682,0.0001377,2]
[360784935,1747020643763,-159.833852,0.0001377,2]
[360784936,1747020643772,-1004.313708,0.0001377,2]
[360784937,1747020643781,-10400.71947309,0.0001377,2]
[360784938,1747020643804,-1707.54595519,0.0001377,2]
[360784940,1747020646100,-400.0,0.00013769,2]
[360784942,1747020646110,-269.0,0.0001377,2]
[360784943,1747020646152,-1014.54195635,0.0001377,2]
[360784944,1747020646208,-4744.79967454,0.0001377,2]
[360784945,1747020646372,-282.78234949,0.0001377,2]
[360784948,1747020646684,-323.57617519,0.0001377,2]
[360784960,1747020647525,-490.54728415,0.0001377,2]
[360784961,1747020647535,-154.57479585,0.0001377,2]
[360784962,1747020647546,-46.46324695,0.0001377,2]
[360784963,1747020647556,-675.24,0.0001377,2]
[360784964,1747020647565,-400.0,0.0001377,2]
[360784965,1747020647574,-363.0272332,0.0001377,2]
[360784970,1747020731442,-255.37704599,0.0001279,2]
[360784971,1747020741462,-175.86669766,0.0001279,2]
[360784972,1747020757442,-125.55625635,0.0001279,2]
[360784973,1747020757465,-35.63374365,0.00012849,2]
[360784974,1747020758326,150.0,0.00012242,2]
[360784986,1747020771529,-254.38508345,0.00012849,2]
[360784987,1747020821901,-150.0,0.00012732,2]
[360784988,1747020871322,-311.65940824,0.00012722,2]
[360784989,1747020876758,-167.01194082,0.00012722,2]
[360784990,1747020892024,-29.43865094,0.00012722,2]
[360784992,1747020954568,-153.4585261,0.0001272,2]
[360784993,1747020966533,-146.1114739,0.0001272,2]
[360784995,1747021048863,-263.09654466,0.000127,2]
[360784996,1747021056536,-266.71032109,0.000127,2]
[360784997,1747021073344,-247.59254249,0.000127,2]
[360784999,1747021115786,-179.61765318,0.00012637,2]
[360785000,1747021130913,-2.90163041,0.00012637,2]
[360785001,1747021130937,-222.60059176,0.000127,2]
[360785002,1747021130962,-24.49777783,0.00012774,2]
[360785003,1747021135971,184.57,0.00028,120]
[360785004,1747021146588,-173.65706895,0.00012774,2]
[360785005,1747021162105,-51.84515322,0.00012774,2]
[360785006,1747021193678,-180.12274527,0.00012704,2]
[360785007,1747021206454,-69.87725473,0.00012704,2]
[360785008,1747021206477,-94.39965262,0.00012777,2]
[360785009,1747021207003,-155.60034738,0.00012777,2]
[360785010,1747021220777,-282.46097747,0.00012696,2]
[360785011,1747021235886,-170.7393119,0.00012696,2]
[360785012,1747021250941,-205.14971063,0.00012696,2]
[360785015,1747021418738,954.83,0.00010682,2]
[360785016,1747021469825,-252.68798958,0.000126,2]
[360785017,1747021476468,-180.42684345,0.000126,2]
[360785020,1747021490819,-538.23859776,0.000126,2]
[360785021,1747021505929,-416.36168994,0.000126,2]
[360785022,1747021521474,-205.33607628,0.00012599,2]
[360785023,1747021522585,-89.32784744,0.00012599,2]
[360785024,1747021522609,-116.00822884,0.000126,2]
[360785025,1747021538258,-205.33607628,0.00012599,2]
[360785026,1747021538280,-281.63007405,0.000126,2]
[360785027,1747021550986,-223.58526255,0.00012594,2]
[360785029,1747021565900,-450.0,0.00012594,2]
[360785030,1747021581004,-152.0,0.00012594,2]
[360785031,1747021595901,-164.53570043,0.00012531,2]
[360785032,1747021610871,-35.66692019,0.00012531,2]
[360785033,1747021610894,-127.31821754,0.00012594,2]
[360785054,1747021625904,-18.44651991,0.00012594,2]
[360785055,1747021625935,-166.58348009,0.00012598,2]
[360785056,1747021627751,762.86622907,0.00028,120]
[360785059,1747021641590,-26.54140941,0.000126,2]
[360785060,1747021641613,-201.92516697,0.000126,2]
[360785061,1747021723227,-180.30363672,0.00012598,2]
[360785062,1747021727768,-180.30363672,0.00012598,2]
[360785063,1747021742149,-351.86769547,0.00012594,2]
[360785064,1747021744904,-133.37230453,0.00012594,2]
[360785065,1747021744933,-139.39272656,0.00012598,2]
[360785066,1747021744963,-79.10266438,0.00012598,2]
[360785071,1747021757150,-152.29118431,0.00012598,2]
[360785074,1747021778881,-286.34770138,0.00012615,2]
[360785075,1747021787188,-171.79613539,0.00012615,2]
[360785079,1747021802129,-49.62616323,0.00012615,2]
[360785081,1747021832405,-1329.5811729,0.00012849,2]
[360785082,1747021832415,-250.0,0.00012898,2]
[360785083,1747021832425,-954.83,0.00012946,2]
[360785084,1747021832435,-176.330591,0.00013164,2]
[360785085,1747021832446,-274.83985883,0.00013231,2]
[360785086,1747021832455,-274.83985883,0.000134,2]
[360785087,1747021832465,-207.4,0.00013492,2]
[360785088,1747021832475,-150.0,0.00013496,2]
[360785089,1747021832485,-150.0,0.00013496,2]
[360785090,1747021832495,-150.0,0.00013498,2]
[360785091,1747021832505,-1200.0,0.00013499,2]
[360785092,1747021832515,-300.0,0.00013499,2]
[360785093,1747021832524,-1736.0,0.000135,2]
[360785094,1747021832535,-1000.0,0.000135,2]
[360785095,1747021832545,-150.71,0.000135,2]
[360785096,1747021832554,-150.0,0.00013501,2]
[360785097,1747021832564,-150.0,0.00013502,2]
[360785098,1747021832574,-150.0,0.00013504,2]
[360785099,1747021832586,-150.0,0.00013504,2]
[360785100,1747021832596,-1000.0,0.00013506,2]
[360785101,1747021832605,-150.0,0.00013507,2]
[360785102,1747021832615,-150.0,0.00013513,2]
[360785103,1747021832625,-150.0,0.00013517,2]
[360785104,1747021832634,-150.0,0.0001352,2]
[360785105,1747021832644,-668.65185757,0.00013529,2]
[360785106,1747021832654,-150.0,0.00013529,2]
[360785107,1747021832663,-150.0,0.0001353,2]
[360785108,1747021832676,-150.0,0.00013531,2]
[360785109,1747021832686,-150.0,0.00013536,2]
[360785110,1747021832695,-150.99,0.00013536,2]
[360785111,1747021832705,-150.99,0.00013536,2]
[360785112,1747021832715,-499.99,0.00013536,2]
[360785113,1747021832724,-230.20602099,0.00013537,2]
[360785114,1747021832734,-6926.34,0.00013537,2]
[360785115,1747021832743,-150.0,0.00013541,2]
[360785116,1747021832753,-150.0,0.00013541,2]
[360785117,1747021832763,-150.0,0.00013548,2]
[360785118,1747021832772,-150.0,0.00013549,2]
[360785119,1747021832782,-150.0,0.0001355,2]
[360785120,1747021832791,-150.0,0.00013551,2]
[360785121,1747021832800,-150.0,0.00013552,2]
[360785122,1747021832811,-150.0,0.00013554,2]
[360785123,1747021832820,-150.0,0.00013557,2]
[360785124,1747021832830,-150.0,0.00013564,2]
[360785125,1747021832840,-150.0,0.00013566,2]
[360785126,1747021832849,-150.0,0.00013566,2]
[360785128,1747021832859,-1956.7284,0.00013569,2]
[360785129,1747021832868,-2051.6367,0.00013569,2]
[360785130,1747021832878,-150.0,0.00013569,2]
[360785131,1747021832887,-362.87407948,0.00013569,2]
[360785132,1747021832896,-274.83985883,0.00013569,2]
[360785133,1747021832906,-150.0,0.0001357,2]
[360785134,1747021832915,-150.0,0.00013572,2]
[360785135,1747021832924,-362.87407945,0.0001358,2]
[360785136,1747021832933,-150.0,0.00013581,2]
[360785137,1747021832942,-150.0,0.00013583,2]
[360785138,1747021833227,-150.0,0.00013583,2]
[360785139,1747021833237,-150.0,0.00013589,2]
[360785140,1747021833246,-150.0,0.0001359,2]
[360785141,1747021833255,-362.87407945,0.00013591,2]
[360785142,1747021833265,-150.0,0.00013592,2]
[360785143,1747021833274,-150.0,0.00013596,2]
[360785144,1747021833283,-150.0,0.00013596,2]
[360785145,1747021833292,-150.0,0.00013599,2]
[360785146,1747021833302,-150.0,0.000136,2]
[360785147,1747021833311,-1000.0,0.00013602,2]
[360785148,1747021833322,-362.87407945,0.00013602,2]
[360785149,1747021833331,-1402.92955403,0.00013603,2]
[360785150,1747021833341,-150.0,0.00013603,2]
[360785151,1747021833350,-150.0,0.00013608,2]
[360785152,1747021833359,-1000.0,0.00013608,2]
[360785153,1747021833369,-408.53382971,0.0001361,2]
[360785154,1747021833379,-150.0,0.00013611,2]
[360785155,1747021833388,-150.0,0.00013611,2]
[360785156,1747021833398,-362.87407945,0.00013613,2]
[360785157,1747021833407,-1193.03663032,0.00013614,2]
[360785158,1747021833420,-209.89292371,0.00013614,2]
[360785159,1747021833429,-150.0,0.00013614,2]
[360785160,1747021833438,-150.0,0.00013615,2]
[360785161,1747021833448,-150.0,0.00013617,2]
[360785162,1747021833457,-150.0,0.00013619,2]
[360785163,1747021833467,-150.0,0.0001362,2]
[360785164,1747021833476,-150.0,0.00013621,2]
[360785165,1747021833486,-150.0,0.00013621,2]
[360785166,1747021833495,-150.0,0.00013622,2]
[360785167,1747021833505,-150.0,0.00013623,2]
[360785168,1747021833514,-150.0,0.00013623,2]
[360785169,1747021833524,-150.0,0.00013623,2]
[360785170,1747021833533,-362.87407945,0.00013625,2]
[360785171,1747021833543,-168.37987908,0.00013625,2]
[360785173,1747021838671,-150.0,0.00013495,2]
[360785174,1747021838693,-150.0,0.00013517,2]
[360785175,1747021838702,-150.0,0.00013545,2]
[360785176,1747021838712,-150.0,0.00013608,2]
[360785177,1747021838722,-1234.54967495,0.00013625,2]
[360785178,1747021838732,-150.0,0.00013627,2]
[360785179,1747021838741,-150.0,0.00013633,2]
[360785180,1747021838751,-3.25038505,0.00013634,2]
[360785181,1747021838762,-146.74961495,0.00013634,2]
[360785182,1747021838772,-362.87407945,0.00013636,2]
[360785183,1747021838782,-227.9263059,0.00013636,2]
[360785184,1747021840650,-1175.00324813,0.00013636,2]
[360785185,1747021840660,-150.0,0.00013638,2]
[360785186,1747021840670,-751.99675187,0.00013641,2]
[360785187,1747021841149,-248.00324813,0.00013641,2]
[360785188,1747021841158,-150.0,0.00013645,2]
[360785189,1747021841167,-342.79817442,0.00013647,2]
[360785190,1747021841249,-20.07590503,0.00013647,2]
[360785191,1747021841259,-1402.92955403,0.00013648,2]
[360785192,1747021841267,-150.0,0.00013648,2]
[360785193,1747021841276,-151.8164947,0.00013648,2]
[360785194,1747021841286,-150.0,0.00013649,2]
[360785195,1747021841295,-150.0,0.00013649,2]
[360785196,1747021841305,-150.0,0.0001365,2]
[360785197,1747021841315,-231.93343165,0.0001365,2]
[360785198,1747021841324,-362.87407945,0.00013658,2]
[360785199,1747021841333,-150.0,0.00013658,2]
[360785200,1747021841344,-1402.92955403,0.00013659,2]
[360785201,1747021841353,-150.0,0.00013659,2]
[360785202,1747021841362,-1000.0,0.00013661,2]
[360785203,1747021841371,-150.0,0.00013663,2]
[360785204,1747021841381,-150.0,0.00013663,2]
[360785205,1747021841391,-150.0,0.00013667,2]
[360785206,1747021841401,-167.28458554,0.00013667,2]
[360785207,1747021841410,-167.28458548,0.00013668,2]
[360785208,1747021841419,-167.28458548,0.00013668,2]
[360785209,1747021841429,-163.35923646,0.00013668,2]
[360785210,1747021841438,-167.28458548,0.00013669,2]
[360785211,1747021841447,-14386.59093529,0.00013669,2]
[360785212,1747021841459,-336.8636706,0.00013669,2]
[360785213,1747021841470,-17925.84833525,0.00013669,2]
[360785214,1747021841489,-150.0,0.00013629,2]
[360785215,1747021841498,-26136.42166058,0.00013669,2]
[360785216,1747021841543,-3018.40926546,0.00013669,2]
[360785226,1747021845500,-15828.5022402,0.00013669,2]
[360785227,1747021845647,-7434.86125146,0.00013669,2]
[360785233,1747021846285,-594.94514434,0.00013669,2]
[360785234,1747021846545,-10392.2866419,0.00013669,2]
[360785235,1747021846651,-5346.75047456,0.00013669,2]
[360785236,1747021846758,-1512.76944432,0.00013669,2]
[360785248,1747022205562,-297.52286136,0.00012636,2]
[360785249,1747022218162,-145.99713864,0.00012636,2]
[360785250,1747022272907,106270.46,0.00028,120]
[360785251,1747022275516,-286.38362061,0.00012621,2]
[360785252,1747022279180,-179.32101991,0.00012621,2]
[360785253,1747022294361,-152.87535948,0.00012621,2]
[360785254,1747022308108,-169.6,0.00012621,2]
[360785255,1747022308130,-144.48715312,0.00012626,2]
[360785256,1747022322572,-105.51284688,0.00012626,2]
[360785257,1747022390419,-282.09213046,0.00012625,2]
[360785258,1747022452411,3000.0,0.0001178,2]
[360785259,1747022502543,-267.00582207,0.00012622,2]
[360785261,1747022518194,-200.0,0.00012601,2]
[360785262,1747022518225,-19.07868155,0.00012622,2]
[360785264,1747022532713,-26.05041864,0.00012622,2]
[360785265,1747022532736,-210.11281803,0.00012623,2]
[360785266,1747022549080,-236.16323667,0.00012623,2]
[360785267,1747022562494,-498.52111386,0.00012623,2]
[360785268,1747022577741,-229.41583234,0.00012622,2]
[360785269,1747022593308,-269.10528152,0.00012622,2]
[360785270,1747022593335,-1.47888614,0.00012622,2]
[360785271,1747022607586,-227.9369462,0.00012622,2]
[360785272,1747022607608,-37.23283144,0.00012623,2]
[360785273,1747022607631,-6.89327616,0.00012625,2]
[360785274,1747022623180,-159.38,0.00012598,2]
[360785275,1747022623213,-77.50368824,0.00012622,2]
[360785276,1747022637632,-194.55936556,0.00012622,2]
[360785277,1747022637662,-13.6939672,0.00012622,2]
[360785281,1747022652550,-164.8951689,0.00012622,2]
[360785282,1747022668198,-58.29455214,0.00012622,2]
[360785283,1747022668229,-154.65285054,0.00012622,2]
[360785284,1747022683118,-163.61459338,0.00012625,2]
[360785285,1747022689356,220.52,0.00012242,2]
[360785286,1747022709694,-180.29581256,0.00012595,2]
[360785287,1747022713048,-241.19442516,0.00012595,2]
[360785290,1747022728115,-267.61114968,0.00012595,2]
[360785291,1747022744063,-184.33661654,0.00012595,2]
[360785292,1747022757603,-257.41866794,0.00012595,2]
[360785293,1747022772562,-214.13273447,0.00012531,2]
[360785294,1747022787627,-220.19526483,0.00012531,2]
[360785295,1747022802577,-300.0,0.0001253,2]
[360785296,1747022817601,-200.0,0.0001253,2]
[360785297,1747022817628,-93.05042228,0.0001253,2]
[360785298,1747022827338,901.01,0.00010678,2]
[360785299,1747022832594,-126.16766424,0.0001253,2]
[360785300,1747022832622,-36.97211091,0.0001253,2]
[360785305,1747022847656,-300.0,0.0001253,2]
[360785307,1747022863282,-297.12464052,0.00012467,2]
[360785308,1747022877516,-300.0,0.00012467,2]
[360785309,1747022892558,-234.81575344,0.00012467,2]
[360785310,1747022908617,-95.35589004,0.00012467,2]
[360785311,1747022908639,-66.16410996,0.0001253,2]
[360785312,1747022923097,-175.00990309,0.00012529,2]
[360785313,1747022937548,-205.3454573,0.00012529,2]
[360785314,1747022952597,-119.64463961,0.00012529,2]
[360785315,1747022952627,-175.3632946,0.00012529,2]
[360785316,1747022968058,-204.99206579,0.00012529,2]
[360785320,1747022983214,-119.64463961,0.00012529,2]
[360785321,1747022983244,-142.02611743,0.00012529,2]
[360785322,1747022998142,-223.36481263,0.00012529,2]
[360785323,1747022998168,-14.96443033,0.00012529,2]
[360785326,1747023012615,-282.13981072,0.00012529,2]
[360785327,1747023027557,-321.43815447,0.00012529,2]
[360785342,1747023031536,-596.42203481,0.00012529,2]
[360785343,1747023031546,-300.0,0.00012529,2]
[360785344,1747023031555,-22.97796479,0.00012529,2]
[360785345,1747023031567,-257.06553909,0.00012529,2]
[360785346,1747023031577,-204.99206579,0.00012529,2]
[360785347,1747023031587,-261.67075704,0.00012529,2]
[360785348,1747023031597,-238.32924296,0.00012529,2]
[360785349,1747023031608,-282.13981072,0.00012529,2]
[360785350,1747023031618,-10421.95352405,0.0001253,2]
[360785351,1747023031663,-400.0,0.0001253,2]
[360785352,1747023031674,-1352.75423105,0.0001253,2]
[360785353,1747023031695,-2818.03443638,0.0001253,2]
[360785354,1747023031704,-22769.14332812,0.00012595,2]
[360785355,1747023031714,-1000.0,0.00012597,2]
[360785356,1747023031723,-900.0,0.00012876,2]
[360785357,1747023031732,-901.01,0.00012942,2]
[360785358,1747023031742,-668.65185757,0.00013142,2]